[Event "Marshall CC U2400 October 2024"]
[Site "New York"]
[Date "2024.10.20"]
[Round "3.10"]
[White "Lou, Aileen"]
[Black "Goodrich, Elliott"]
[Result "0-1"]
[ECO "C55"]
[WhiteElo "1689"]
[BlackElo "1851"]
[Annotator "NA RC"]
[PlyCount "74"]
[EventDate "2024.04.20"]
[EventType "swiss"]
[EventCountry "USA"]
[SourceTitle "playchess.com"]
[Source "ChessBase"]
[SourceQuality "1"]
[TimeControl "5400+30"]

1. e4 {[%emt 0:00:56]} e5 {[%emt 0:00:03]} 2. Nf3 {[%emt 0:00:10]} Nc6 {[%emt 0:00:03]} 3. Bc4 {[%emt 0:00:12]} Nf6 {[%emt 0:00:03]} 4. d3 {[%emt 0:00:06]} h6 {[%emt 0:00:03]} 5. c3 {[%emt 0:00:17]} d6 {[%emt 0:00:04]} 6. h3 {[%emt 0:00:05]} g6 {[%emt 0:00:06]} 7. Be3 {[%emt 0:00:13]} Bg7 {[%emt 0:00:05]} 8. Nbd2 {[%emt 0:00:20]} O-O {[%emt 0:00:12]} 9. O-O {[%emt 0:00:08]} d5 {[%emt 0:02:24]} 10. Bb3 {[%emt 0:02:24]} Be6 {[%emt 0:02:14]} 11. Re1 {[%emt 0:01:33]} Qd6 {[%emt 0:02:29]} 12. exd5 {[%emt 0:03:59]} Bxd5 {[%emt 0:00:30]} 13. Bxd5 {[%emt 0:00:30]} Qxd5 {[%emt 0:00:27]} 14. Nb3 {[%emt 1:26:37]} Nd7 {[%emt 0:12:55]} 15. d4 {[%emt 0:00:00]} Rad8 {[%emt 0:04:27]} 16. Qc2 {[%emt 0:00:00]} exd4 {[%emt 0:01:00]} 17. Nbxd4 {[%emt 0:00:00]} Nde5 {[%emt 0:03:28]} 18. b3 {[%emt 0:00:00]} Nxf3+ {[%emt 1:08:57]} 19. Nxf3 {[%emt 0:00:00]} Qd3 {[%emt 0:00:00]} 20. Qxd3 {[%emt 0:00:00]} Rxd3 {[%emt 0:00:00]} 21. Rac1 {[%emt 0:00:00]} Kh7 {[%emt 0:00:00]} 22. c4 {[%emt 0:00:00]} Rfd8 {[%emt 0:00:00]} 23. Bf4 {[%emt 0:00:00]} R8d7 {[%emt 0:00:00]} 24. Re3 {[%emt 0:00:00]} Nb4 {[%emt 0:00:00]} 25. Rxd3 {[%emt 0:00:00]} Rxd3 {[%emt 0:00:00]} 26. a3 {[%emt 0:00:00]} Rxf3 {[%emt 0:00:00]} 27. gxf3 {[%emt 0:00:00]} Nd3 {[%emt 0:00:00]} 28. Rd1 {[%emt 0:00:00]} Nxf4 {[%emt 0:00:00]} 29. Rd7 {[%emt 0:00:00]} Be5 {[%emt 0:05:30]} 30. Rxf7+ {[%emt 0:00:00]} Kg8 {[%emt 0:00:00]} 31. Re7 {[%emt 0:00:00]} Bd6 {[%emt 0:00:00]} 32. Re4 {[%emt 0:00:00]} Nxh3+ {[%emt 0:00:00]} 33. Kg2 {[%emt 0:00:00]} Ng5 {[%emt 0:00:00]} 34. Rh4 {[%emt 0:00:00]} h5 {[%emt 0:00:00]} 35. b4 {[%emt 0:00:00]} b6 {[%emt 0:00:00]} 36. Rd4 {[%emt 0:00:00]} Ne6 {[%emt 0:00:00]} 37. Kf1 {[%emt 0:00:00]} Nxd4 {[%emt 0:00:00]} 0-1

[Event "Marshall CC U2400 October 2024"]
[Site "New York"]
[Date "2024.10.20"]
[Round "4.1"]
[White "Das, Aditeya"]
[Black "Sarkar, Justin"]
[Result "0-1"]
[ECO "B43"]
[WhiteElo "1961"]
[BlackElo "2275"]
[Annotator "RC"]
[PlyCount "113"]
[EventDate "2024.04.20"]
[EventType "swiss"]
[EventCountry "USA"]
[SourceTitle "playchess.com"]
[Source "ChessBase"]
[SourceQuality "1"]
[TimeControl "5400+30"]

1. e4 {[%emt 0:14:47]} c5 {[%emt 0:00:09]} 2. Nf3 {[%emt 0:00:12]} e6 {[%emt 0:00:22]} 3. Nc3 {[%emt 0:00:06]} a6 {[%emt 0:01:01]} 4. d4 {[%emt 0:00:06]} cxd4 {[%emt 0:00:06]} 5. Nxd4 {[%emt 0:00:05]} b5 {[%emt 0:00:47]} 6. Be2 {[%emt 0:01:00]} Bb7 {[%emt 0:00:15]} 7. Bf3 {[%emt 0:00:05]} Qc7 {[%emt 0:25:52]} 8. O-O {[%emt 0:00:16]} b4 {[%emt 0:00:43]} 9. Nce2 {[%emt 0:01:03]} Bd6 {[%emt 0:00:19]} 10. h3 {[%emt 0:01:15]} Nf6 {[%emt 0:09:39]} 11. Qd3 {[%emt 0:00:10]} Nc6 {[%emt 0:00:07]} 12. Nxc6 {[%emt 0:00:12]} dxc6 {[%emt 0:00:11]} 13. Rd1 {[%emt 0:12:17]} O-O-O {[%emt 0:04:35]} 14. Nd4 {[%emt 0:02:29]} c5 {[%emt 0:02:01]} 15. c3 {[%emt 0:00:18]} cxd4 {[%emt 0:01:28]} 16. cxd4 {[%emt 0:00:03]} Kb8 {[%emt 0:01:22]} 17. Be3 {[%emt 0:01:44]} e5 {[%emt 0:01:18]} 18. Kh1 {[%emt 0:02:20]} Bc5 {[%emt 0:05:49]} 19. Rac1 {[%emt 0:00:07]} exd4 {[%emt 0:00:17]} 20. Bg5 {[%emt 0:00:03]} Qe5 {[%emt 0:07:20]} 21. Bh4 {[%emt 0:01:02]} Bd6 {[%emt 0:00:06]} 22. Bg3 {[%emt 0:00:13]} Nxe4 {[%emt 0:06:22]} 23. Bxe5 {[%emt 0:02:15]} Nxf2+ {[%emt 0:00:06]} 24. Kg1 {[%emt 0:00:08]} Nxd3 {[%emt 0:00:03]} 25. Bxd6+ {[%emt 0:00:06]} Rxd6 {[%emt 0:00:05]} 26. Rxd3 {[%emt 0:00:10]} Rc8 {[%emt 0:00:09]} 27. Rcd1 {[%emt 0:03:36]} Rc2 {[%emt 0:04:24]} 28. Bxb7 {[%emt 0:02:32]} Kxb7 {[%emt 0:00:03]} 29. Rb3 {[%emt 0:00:15]} a5 {[%emt 0:00:33]} 30. a3 {[%emt 0:01:00]} Rg6 {[%emt 0:03:36]} 31. g4 {[%emt 0:00:36]} Re6 {[%emt 0:02:06]} 32. axb4 {[%emt 0:01:05]} a4 {[%emt 0:00:10]} 33. Rf3 {[%emt 0:01:12]} Rxb2 {[%emt 0:04:40]} 34. Ra1 {[%emt 0:01:59]} f6 {[%emt 0:07:03]} 35. Rxa4 {[%emt 0:00:43]} Re1+ {[%emt 0:00:39]} 36. Rf1 {[%emt 0:00:02]} Rxf1+ {[%emt 0:00:50]} 37. Kxf1 {[%emt 0:00:01]} d3 {[%emt 0:00:11]} 38. Ke1 {[%emt 0:00:54]} Rh2 {[%emt 0:00:36]} 39. b5 {[%emt 0:00:28]} Rxh3 {[%emt 0:00:36]} 40. Re4 {[%emt 0:00:55]} Kb6 {[%emt 0:00:12]} 41. Re7 {[%emt 0:00:24]} g6 {[%emt 0:01:01]} 42. Re6+ {[%emt 0:02:20]} Kxb5 {[%emt 0:00:05]} 43. Rxf6 {[%emt 0:00:13]} Kc4 {[%emt 0:00:20]} 44. Kd2 {[%emt 0:06:18]} Kd4 {[%emt 0:00:27]} 45. Rf4+ {[%emt 0:00:38]} Ke5 {[%emt 0:00:02]} 46. Ra4 {[%emt 0:01:47]} Kf6 {[%emt 0:00:07]} 47. Ra5 {[%emt 0:00:10]} Rg3 {[%emt 0:00:20]} 48. Ra7 {[%emt 0:00:34]} h6 {[%emt 0:00:15]} 49. Ra5 {[%emt 0:00:32]} Rxg4 {[%emt 0:00:32]} 50. Kxd3 {[%emt 0:00:06]} Rf4 {[%emt 0:00:07]} 51. Ra6+ {[%emt 0:00:53]} Kg5 {[%emt 0:00:07]} 52. Ke3 {[%emt 0:00:07]} Rf5 {[%emt 0:00:06]} 53. Ra1 {[%emt 0:00:22]} h5 {[%emt 0:17:20]} 54. Rg1+ {[%emt 0:00:07]} Kh6 {[%emt 0:00:00]} 55. Rh1 {[%emt 0:00:12]} g5 {[%emt 0:00:00]} 56. Ke4 {[%emt 0:00:04]} Rf8 {[%emt 0:00:00]} 57. Kd4 {[%emt 0:46:23]} 0-1

[Event "Marshall CC U2400 October 2024"]
[Site "New York"]
[Date "2024.10.20"]
[Round "4.2"]
[White "Bonin, Jay"]
[Black "Knowles, Chase"]
[Result "1/2-1/2"]
[ECO "A00"]
[WhiteElo "2131"]
[BlackElo "1966"]
[Annotator "RC"]
[PlyCount "75"]
[EventDate "2024.04.20"]
[EventType "swiss"]
[EventCountry "USA"]
[SourceTitle "playchess.com"]
[Source "ChessBase"]
[SourceQuality "1"]
[TimeControl "5400+30"]

1. Nc3 {[%emt 0:00:12]} d5 {[%emt 0:00:21]} 2. e4 {[%emt 0:00:05]} d4 {[%emt 0:00:26]} 3. Nce2 {[%emt 0:00:04]} c5 {[%emt 0:00:14]} 4. Ng3 {[%emt 0:00:23]} e5 {[%emt 0:02:33]} 5. Nf3 {[%emt 0:01:14]} Bd6 {[%emt 0:09:15]} 6. Bc4 {[%emt 0:00:53]} Nf6 {[%emt 0:00:56]} 7. d3 {[%emt 0:01:16]} h6 {[%emt 0:03:12]} 8. Nh4 {[%emt 0:08:09]} Nc6 {[%emt 0:03:06]} 9. O-O {[%emt 0:03:08]} Bf8 {[%emt 0:03:15]} 10. f4 {[%emt 0:09:00]} exf4 {[%emt 0:07:54]} 11. Bxf4 {[%emt 0:00:34]} g5 {[%emt 0:02:38]} 12. Bc7 {[%emt 0:03:12]} Qxc7 {[%emt 0:06:47]} 13. Rxf6 {[%emt 0:00:15]} gxh4 {[%emt 0:00:53]} 14. Rxf7 {[%emt 0:03:51]} Qe5 {[%emt 0:03:50]} 15. Nh5 {[%emt 0:05:45]} Bd6 {[%emt 0:04:54]} 16. Qf3 {[%emt 0:05:10]} Ne7 {[%emt 0:13:03]} 17. Ng7+ {[%emt 0:07:28]} Kd8 {[%emt 0:02:22]} 18. Rf8+ {[%emt 0:00:39]} Rxf8 {[%emt 0:01:58]} 19. Qxf8+ {[%emt 0:00:06]} Kd7 {[%emt 0:07:33]} 20. Bb5+ {[%emt 0:12:00]} Nc6 {[%emt 0:04:44]} 21. Qf7+ {[%emt 0:00:51]} Kd8 {[%emt 0:03:37]} 22. Qg8+ {[%emt 0:02:48]} Kc7 {[%emt 0:00:20]} 23. Ne8+ {[%emt 0:00:06]} Kb6 {[%emt 0:00:36]} 24. Nxd6 {[%emt 0:00:20]} Qxd6 {[%emt 0:00:05]} 25. a4 {[%emt 0:01:32]} a6 {[%emt 0:01:02]} 26. Bxc6 {[%emt 0:02:29]} Qxc6 {[%emt 0:00:29]} 27. a5+ {[%emt 0:03:54]} Ka7 {[%emt 0:00:29]} 28. Rf1 {[%emt 0:01:21]} Be6 {[%emt 0:02:02]} 29. Qg7 {[%emt 0:00:54]} Rg8 {[%emt 0:01:03]} 30. Qe5 {[%emt 0:01:03]} Bh3 {[%emt 0:02:56]} 31. Rf2 {[%emt 0:01:25]} Rg5 {[%emt 0:01:09]} 32. Qe7 {[%emt 0:00:48]} Qg6 {[%emt 0:00:47]} 33. Kf1 {[%emt 0:00:26]} Qh5 {[%emt 0:03:46]} 34. Ke1 {[%emt 0:01:14]} Rxg2 {[%emt 0:00:34]} 35. Rxg2 {[%emt 0:00:24]} Bxg2 {[%emt 0:00:06]} 36. e5 {[%emt 0:00:32]} Qf5 {[%emt 0:05:31]} 37. Qxc5+ {[%emt 0:25:29]} Kb8 38. Qxd4 {[%emt 0:00:30]} 1/2-1/2

[Event "Marshall CC U2400 October 2024"]
[Site "New York"]
[Date "2024.10.20"]
[Round "4.3"]
[White "Paragua, Megan Althea"]
[Black "Schaefer, Sasha Milo"]
[Result "1-0"]
[ECO "B13"]
[WhiteElo "2190"]
[BlackElo "1850"]
[Annotator "RC"]
[PlyCount "75"]
[EventDate "2024.04.20"]
[EventType "swiss"]
[EventCountry "USA"]
[SourceTitle "playchess.com"]
[Source "ChessBase"]
[SourceQuality "1"]
[TimeControl "5400+30"]

1. e4 {[%emt 0:04:49]} c6 {[%emt 0:00:02]} 2. d4 {[%emt 0:00:15]} d5 {[%emt 0:00:02]} 3. exd5 {[%emt 0:00:28]} cxd5 {[%emt 0:00:03]} 4. c4 {[%emt 0:00:29]} Nf6 {[%emt 0:00:02]} 5. Nc3 {[%emt 0:00:08]} Nc6 {[%emt 0:00:02]} 6. Nf3 {[%emt 0:00:21]} a6 {[%emt 0:00:01]} 7. c5 {[%emt 0:00:58]} Bg4 {[%emt 0:05:27]} 8. Be2 {[%emt 0:00:38]} e6 {[%emt 0:08:56]} 9. O-O {[%emt 0:00:28]} Be7 {[%emt 0:00:53]} 10. Be3 {[%emt 0:01:39]} O-O {[%emt 0:00:39]} 11. Rc1 {[%emt 0:01:28]} Qc7 {[%emt 0:07:38]} 12. Qd2 {[%emt 0:06:58]} b6 {[%emt 0:19:40]} 13. cxb6 {[%emt 0:27:41]} Qxb6 {[%emt 0:00:10]} 14. Na4 {[%emt 0:00:29]} Qb7 {[%emt 0:02:43]} 15. b3 {[%emt 0:03:11]} Ne4 {[%emt 0:05:58]} 16. Qb2 {[%emt 0:00:49]} Rac8 {[%emt 0:11:42]} 17. h3 {[%emt 0:09:17]} Bh5 {[%emt 0:02:43]} 18. Rc2 {[%emt 0:07:35]} Nb4 {[%emt 0:03:43]} 19. Rxc8 {[%emt 0:00:26]} Rxc8 {[%emt 0:00:10]} 20. Rc1 {[%emt 0:00:28]} Rxc1+ {[%emt 0:03:05]} 21. Bxc1 {[%emt 0:01:33]} Nc6 {[%emt 0:09:48]} 22. Be3 {[%emt 0:03:29]} h6 {[%emt 0:03:12]} 23. Qc1 {[%emt 0:09:42]} Ng5 {[%emt 0:05:26]} 24. Nc5 {[%emt 0:03:15]} Bxc5 {[%emt 0:02:12]} 25. Qxc5 {[%emt 0:00:37]} Ne4 {[%emt 0:03:12]} 26. Qc1 {[%emt 0:01:21]} a5 {[%emt 0:00:31]} 27. Ne5 {[%emt 0:04:17]} Nxe5 {[%emt 0:01:17]} 28. Bxh5 {[%emt 0:01:15]} Nd3 {[%emt 0:00:25]} 29. Qb1 {[%emt 0:01:07]} Nb4 {[%emt 0:00:28]} 30. a3 {[%emt 0:00:18]} Nc6 {[%emt 0:00:43]} 31. Bf3 {[%emt 0:00:22]} a4 {[%emt 0:01:02]} 32. b4 {[%emt 0:01:49]} Na5 {[%emt 0:00:58]} 33. Qc2 {[%emt 0:00:44]} Qc6 {[%emt 0:01:30]} 34. Bxe4 {[%emt 0:02:29]} dxe4 {[%emt 0:00:10]} 35. Qc5 {[%emt 0:00:05]} Qxc5 {[%emt 0:00:33]} 36. dxc5 {[%emt 0:00:02]} Nc4 {[%emt 0:01:28]} 37. c6 {[%emt 0:00:12]} Kf8 {[%emt 0:00:16]} 38. c7 {[%emt 0:00:06]} 1-0

[Event "Marshall CC U2400 October 2024"]
[Site "New York"]
[Date "2024.10.20"]
[Round "4.4"]
[White "Berg, George"]
[Black "Gutnik, Aleksandr"]
[Result "1-0"]
[ECO "C10"]
[WhiteElo "1962"]
[BlackElo "1944"]
[Annotator "RC"]
[PlyCount "82"]
[EventDate "2024.04.20"]
[EventType "swiss"]
[EventCountry "USA"]
[SourceTitle "playchess.com"]
[Source "ChessBase"]
[SourceQuality "1"]
[TimeControl "5400+30"]

1. e4 {[%emt 0:00:04]} e6 {[%emt 0:00:09]} 2. d4 {[%emt 0:00:03]} d5 {[%emt 0:00:07]} 3. Nc3 {[%emt 0:00:05]} dxe4 {[%emt 0:00:09]} 4. Nxe4 {[%emt 0:00:03]} Nf6 {[%emt 0:00:07]} 5. Nxf6+ {[%emt 0:00:38]} gxf6 {[%emt 0:00:11]} 6. Nf3 {[%emt 0:00:19]} Nc6 {[%emt 0:00:09]} 7. Bf4 {[%emt 0:08:25]} e5 {[%emt 0:01:21]} 8. dxe5 {[%emt 0:00:05]} Qe7 {[%emt 0:00:07]} 9. c3 {[%emt 0:00:11]} fxe5 {[%emt 0:00:11]} 10. Be3 {[%emt 0:00:51]} Bd7 {[%emt 0:01:46]} 11. Qc2 {[%emt 0:02:07]} O-O-O {[%emt 0:01:25]} 12. O-O-O {[%emt 0:01:15]} h5 {[%emt 0:02:41]} 13. Bd3 {[%emt 0:01:46]} Bh6 {[%emt 0:03:24]} 14. Bxh6 {[%emt 0:00:25]} Rxh6 {[%emt 0:00:10]} 15. Bf5 {[%emt 0:00:11]} Rhh8 {[%emt 0:05:27]} 16. Bxd7+ {[%emt 0:04:23]} Rxd7 {[%emt 0:00:12]} 17. Qf5 {[%emt 0:00:10]} Qe6 {[%emt 0:02:42]} 18. Qxe6 {[%emt 0:00:31]} fxe6 {[%emt 0:00:09]} 19. Rhe1 {[%emt 0:02:22]} Rg8 {[%emt 0:01:51]} 20. g3 {[%emt 0:04:25]} Rf8 {[%emt 0:01:22]} 21. Rxd7 {[%emt 0:01:15]} Kxd7 {[%emt 0:00:11]} 22. Nxe5+ {[%emt 0:00:04]} Nxe5 {[%emt 0:00:11]} 23. Rxe5 {[%emt 0:00:10]} Rxf2 {[%emt 0:00:20]} 24. Rxh5 {[%emt 0:00:06]} Rg2 {[%emt 0:00:34]} 25. Rh4 {[%emt 0:05:21]} Kd6 {[%emt 0:02:14]} 26. Rd4+ {[%emt 0:00:12]} Kc6 {[%emt 0:00:51]} 27. Rd2 {[%emt 0:00:10]} Rg1+ {[%emt 0:00:14]} 28. Kc2 {[%emt 0:00:19]} e5 {[%emt 0:00:30]} 29. Kd3 {[%emt 0:00:42]} Kd5 {[%emt 0:00:30]} 30. Ke3+ {[%emt 0:00:07]} Ke6 {[%emt 0:00:09]} 31. Kf2 {[%emt 0:00:47]} Rh1 {[%emt 0:00:16]} 32. Kg2 {[%emt 0:15:37]} Rb1 {[%emt 0:02:04]} 33. g4 {[%emt 0:00:33]} e4 {[%emt 0:00:12]} 34. h4 {[%emt 0:00:34]} Ke5 {[%emt 0:00:16]} 35. h5 {[%emt 0:11:43]} e3 {[%emt 0:09:43]} 36. Re2 {[%emt 0:00:09]} Kf4 {[%emt 0:00:27]} 37. h6 {[%emt 0:00:13]} Rd1 {[%emt 0:00:16]} 38. h7 {[%emt 0:01:40]} Rd8 {[%emt 0:00:13]} 39. g5 {[%emt 0:05:12]} Kxg5 {[%emt 0:02:27]} 40. Rxe3 {[%emt 0:00:05]} Kf6 {[%emt 0:00:59]} 41. Rd3 {[%emt 0:00:09]} Ra8 {[%emt 1:04:43]} 1-0

[Event "Marshall CC U2400 October 2024"]
[Site "New York"]
[Date "2024.10.20"]
[Round "4.5"]
[White "Goodrich, Elliott"]
[Black "Yoon, Jeremy K"]
[Result "1/2-1/2"]
[ECO "B01"]
[WhiteElo "1851"]
[BlackElo "1728"]
[Annotator "NA RC"]
[PlyCount "102"]
[EventDate "2024.04.20"]
[EventType "swiss"]
[EventCountry "USA"]
[SourceTitle "playchess.com"]
[Source "ChessBase"]
[SourceQuality "1"]
[TimeControl "5400+30"]

1. e4 {[%emt 0:00:02]} d5 {[%emt 0:07:45]} 2. exd5 {[%emt 0:00:04]} Qxd5 {[%emt 0:00:07]} 3. Nc3 {[%emt 0:00:03]} Qa5 {[%emt 0:00:10]} 4. d4 {[%emt 1:32:21]} Nf6 {[%emt 0:00:09]} 5. Nf3 {[%emt 0:00:00]} Bf5 {[%emt 0:00:06]} 6. Bc4 {[%emt 0:00:00]} e6 {[%emt 0:00:28]} 7. Bd2 {[%emt 0:00:00] B01: Scandinavian Defence.} Bb4 {[%emt 0:00:08] The modern move.} 8. O-O {[%emt 0:00:00]} Nc6 {[%emt 0:01:10]} 9. a3 {[%emt 0:00:00]} Bxc3 {[%emt 0:00:12]} 10. Bxc3 {[%emt 0:00:00]} Qb6 {[%emt 0:00:07]} 11. b4 {[%emt 0:00:00]} O-O {[%emt 0:02:28]} 12. b5 {[%emt 0:00:00]} Ne7 {[%emt 0:00:24]} 13. Bb4 {[%emt 0:00:00]} Rfe8 {[%emt 0:01:46]} 14. Qe1 {[%emt 0:00:00]} Nd7 {[%emt 0:17:04]} 15. Ne5 $146 {[%emt 0:00:00]} ({Predecessor:} 15. a4 a5 16. bxa6 bxa6 17. a5 Qa7 18. Bb3 c5 19. Bc3 Rec8 20. Ba4 Nd5 21. Bxd7 Qxd7 {0-1 Rombaldoni,A (2471)-Dvirnyy,D (2492) ITA-ch 70th Siena 2010 (7)}) 15... Qxd4 {[%emt 0:01:54]} 16. Rd1 {[%emt 0:00:00]} Qxe5 {[%emt 0:01:19]} 17. Rxd7 {[%emt 0:00:00]} Qxe1 {[%emt 0:13:25]} 18. Rxe1 {[%emt 0:00:00]} Ng6 {[%emt 0:09:15]} 19. Rxc7 {[%emt 0:00:00]} Rac8 {[%emt 0:02:29]} 20. Rxc8 {[%emt 0:00:00]} Rxc8 {[%emt 0:00:04]} 21. Bb3 {[%emt 0:00:00]} Nf4 {[%emt 0:02:27]} 22. Bd6 {[%emt 0:00:00]} Nd5 {[%emt 0:03:17]} 23. c4 {[%emt 0:00:00]} Nc3 {[%emt 0:01:36]} 24. f3 {[%emt 0:00:00]} Bd3 {[%emt 0:34:40]} 25. Re3 {[%emt 0:00:00]} Ne2+ {[%emt 0:00:00]} 26. Kf2 {[%emt 0:00:00]} Nc1 {[%emt 0:00:00]} 27. Bb4 {[%emt 0:00:00]} (27. c5 $11) 27... Rd8 {[%emt 0:00:00]} 28. Ba4 {[%emt 0:00:00]} Bxc4 {[%emt 0:00:00]} 29. Rc3 {[%emt 0:00:00]} Nd3+ {[%emt 0:00:00]} 30. Ke3 {[%emt 0:00:00]} Nxb4 {[%emt 0:00:00]} 31. axb4 {[%emt 0:00:00]} Bd5 {[%emt 0:00:00]} 32. Rc7 {[%emt 0:00:00]} g6 {[%emt 0:04:00]} 33. Bc2 {[%emt 0:00:00]} Kg7 {[%emt 0:00:30]} 34. Be4 {[%emt 0:00:00]} Bxe4 {[%emt 0:00:00]} 35. fxe4 {[%emt 0:00:00]} Rb8 {[%emt 0:00:00]} 36. e5 {[%emt 0:00:00]} g5 {[%emt 0:00:00]} 37. g4 {[%emt 0:00:00]} Kg6 {[%emt 0:00:00]} 38. Rd7 {[%emt 0:00:00]} h6 {[%emt 0:00:00]} 39. h3 {[%emt 0:00:00]} Kg7 {[%emt 0:00:00]} 40. Kd4 {[%emt 0:00:00]} b6 {[%emt 0:00:00]} 41. Rxa7 {[%emt 0:00:00]} Kg6 {[%emt 0:00:00]} 42. Rd7 {[%emt 0:00:00]} Kg7 {[%emt 0:00:00]} 43. Rd6 {[%emt 0:00:00]} Kg6 {[%emt 0:00:00]} 44. Kc4 {[%emt 0:00:00]} Rc8+ {[%emt 0:00:00]} 45. Rc6 {[%emt 0:00:00]} Rb8 {[%emt 0:00:00]} 46. Kd4 {[%emt 0:00:00]} Rd8+ {[%emt 0:00:00]} 47. Rd6 {[%emt 0:00:00]} Rb8 $1 {[%emt 0:00:00]} 48. Ke4 {[%emt 0:00:00]} Kg7 {[%emt 0:00:00]} 49. Kf3 {[%emt 0:00:00]} Kg6 {[%emt 0:00:00]} 50. Kg3 {[%emt 0:00:00]} Kg7 {[%emt 0:00:00]} 51. h4 {[%emt 0:00:00]} Kg6 $11 {[%emt 0:00:00]} 1/2-1/2

[Event "Marshall CC U2400 October 2024"]
[Site "New York"]
[Date "2024.10.20"]
[Round "4.6"]
[White "Fang, Arabella"]
[Black "Miller, Rachel"]
[Result "0-1"]
[ECO "C50"]
[WhiteElo "1812"]
[BlackElo "1914"]
[Annotator "RC"]
[PlyCount "101"]
[EventDate "2024.04.20"]
[EventType "swiss"]
[EventCountry "USA"]
[SourceTitle "playchess.com"]
[Source "ChessBase"]
[SourceQuality "1"]
[TimeControl "5400+30"]

1. e4 {[%emt 0:00:01]} e5 {[%emt 0:00:13]} 2. Nf3 {[%emt 0:00:04]} Nc6 {[%emt 0:00:05]} 3. Bc4 {[%emt 0:00:05]} Bc5 {[%emt 0:00:08]} 4. d3 {[%emt 0:00:05]} Nf6 {[%emt 0:00:14]} 5. Nc3 {[%emt 0:00:06]} a6 {[%emt 0:00:12]} 6. a3 {[%emt 0:01:17]} d6 {[%emt 0:01:33]} 7. h3 {[%emt 0:00:07]} Be6 {[%emt 0:02:43]} 8. Bxe6 {[%emt 0:02:40]} fxe6 {[%emt 0:00:06]} 9. Be3 {[%emt 0:03:08]} Bxe3 {[%emt 0:07:02]} 10. fxe3 {[%emt 0:00:05]} O-O {[%emt 0:00:04]} 11. O-O {[%emt 0:13:34]} Qe8 {[%emt 0:13:27]} 12. Ne2 {[%emt 0:11:13]} d5 {[%emt 0:05:32]} 13. exd5 {[%emt 0:03:34]} exd5 {[%emt 0:00:37]} 14. d4 {[%emt 0:01:43]} exd4 {[%emt 0:10:15]} 15. exd4 {[%emt 0:00:59]} Qe3+ {[%emt 0:00:06]} 16. Kh2 {[%emt 0:00:28]} Rae8 {[%emt 0:00:26]} 17. Nc3 {[%emt 0:12:14]} Re6 {[%emt 0:22:29]} 18. Qc1 {[%emt 0:11:34]} Rfe8 {[%emt 0:14:57]} 19. Qxe3 {[%emt 0:02:13]} Rxe3 {[%emt 0:00:05]} 20. Kg1 {[%emt 0:01:04]} Na5 {[%emt 0:01:16]} 21. Ne5 {[%emt 0:02:43]} c5 {[%emt 0:01:06]} 22. Rxf6 {[%emt 0:14:28]} cxd4 {[%emt 0:07:06]} 23. Ng4 {[%emt 0:03:31]} dxc3 {[%emt 0:03:47]} 24. Nxe3 {[%emt 0:02:40]} cxb2 {[%emt 0:01:59]} 25. Rb1 {[%emt 0:00:29]} gxf6 {[%emt 0:02:18]} 26. Nxd5 {[%emt 0:00:08]} Re5 {[%emt 0:03:20]} 27. Nxf6+ {[%emt 0:03:18]} Kf7 {[%emt 0:00:09]} 28. Ng4 {[%emt 0:00:08]} Rb5 {[%emt 0:00:10]} 29. a4 {[%emt 0:03:54]} Rb4 {[%emt 0:01:05]} 30. Ne5+ {[%emt 0:00:15]} Ke8 {[%emt 0:01:41]} 31. Nd3 {[%emt 0:00:10]} Rxa4 {[%emt 0:00:06]} 32. Rxb2 {[%emt 0:00:11]} Rc4 {[%emt 0:00:25]} 33. Ne5 {[%emt 0:01:22]} Rc7 {[%emt 0:00:17]} 34. g4 {[%emt 0:00:56]} Re7 {[%emt 0:00:12]} 35. Nd3 {[%emt 0:00:19]} Nc4 {[%emt 0:01:32]} 36. Rb4 {[%emt 0:01:19]} Rc7 {[%emt 0:00:04]} 37. Nb2 {[%emt 0:01:39]} Nxb2 {[%emt 0:00:25]} 38. Rxb2 {[%emt 0:00:03]} a5 {[%emt 0:00:17]} 39. Ra2 {[%emt 0:00:33]} b6 {[%emt 0:00:08]} 40. Kf2 {[%emt 0:00:19]} Kd7 {[%emt 0:00:38]} 41. g5 {[%emt 0:00:37]} Rc3 {[%emt 0:01:00]} 42. Kg2 {[%emt 0:00:59]} Kc6 {[%emt 0:00:18]} 43. h4 {[%emt 0:00:21]} Kb7 {[%emt 0:00:12]} 44. Ra4 {[%emt 0:04:35]} Ka6 {[%emt 0:01:28]} 45. h5 {[%emt 0:00:51]} b5 {[%emt 0:00:50]} 46. Rf4 {[%emt 0:00:16]} a4 {[%emt 0:00:38]} 47. g6 {[%emt 0:00:31]} hxg6 {[%emt 0:00:18]} 48. Rf6+ {[%emt 0:00:47]} Ka5 {[%emt 0:00:07]} 49. hxg6 {[%emt 0:00:48]} Rxc2+ {[%emt 0:01:19]} 50. Kf3 {[%emt 0:00:22]} Rc1 {[%emt 0:00:22]} 51. Rf7 {[%emt 0:01:14]} 0-1

[Event "Marshall CC U2400 October 2024"]
[Site "New York"]
[Date "2024.10.20"]
[Round "4.7"]
[White "Tao, Jeremy"]
[Black "Baranwal, Suvan"]
[Result "1-0"]
[ECO "D45"]
[WhiteElo "1832"]
[BlackElo "1794"]
[Annotator "NA"]
[PlyCount "81"]
[EventDate "2024.04.20"]
[EventType "swiss"]
[EventCountry "USA"]
[SourceTitle "playchess.com"]
[Source "ChessBase"]
[SourceQuality "1"]
[TimeControl "5400+30"]

1. d4 {[%emt 0:00:04]} d5 {[%emt 0:00:03]} 2. c4 {[%emt 0:00:04]} c6 {[%emt 0:00:02]} 3. Nc3 {[%emt 0:00:05]} e6 {[%emt 0:00:10]} 4. e3 {[%emt 0:00:05]} Nf6 {[%emt 0:00:03]} 5. Nf3 {[%emt 0:00:05]} Nbd7 {[%emt 0:00:04]} 6. Qc2 {[%emt 0:00:06]} Be7 {[%emt 0:00:14]} 7. Be2 {[%emt 0:00:05]} O-O {[%emt 0:00:13]} 8. O-O {[%emt 0:00:03]} b6 {[%emt 0:00:07]} 9. e4 {[%emt 0:00:46] 9.e4 scores better than 9.b3.} dxe4 {[%emt 0:00:08]} 10. Nxe4 {[%emt 0:00:04]} Bb7 {[%emt 0:01:05] D45: Semi-Slav: 5 e3.} 11. Nxf6+ {[%emt 1:34:33]} Nxf6 {[%emt 0:02:52]} 12. b4 $146 {[%emt 0:00:00]} ({Predecessor:} 12. c5 a5 13. Bg5 h6 14. Bh4 Ba6 15. Rac1 Bxe2 16. Qxe2 Qd5 17. Ne5 b5 18. Rfd1 {1-0 Ajay Krishna,S (2359)-Johansson,L (2451) Teplice op 17th 2024 (6)}) 12... c5 {[%emt 0:03:53]} 13. dxc5 {[%emt 0:00:00]} bxc5 {[%emt 0:00:07]} 14. b5 {[%emt 0:00:00]} Be4 {[%emt 0:06:44]} 15. Qc3 {[%emt 0:00:00]} Ng4 {[%emt 0:02:29]} 16. Bf4 {[%emt 0:00:00]} Bf6 {[%emt 0:18:47]} 17. Ne5 {[%emt 0:00:00]} Nxe5 {[%emt 0:01:03]} 18. Bxe5 {[%emt 0:00:00]} Bxe5 {[%emt 0:06:23]} 19. Qxe5 {[%emt 0:00:00]} Qd4 {[%emt 0:00:36]} 20. Qxd4 {[%emt 0:00:00]} cxd4 {[%emt 0:00:01]} 21. Rfd1 {[%emt 0:00:00]} Rfd8 {[%emt 0:02:01]} 22. c5 {[%emt 0:00:00]} Bc2 {[%emt 0:04:56]} 23. Rd2 {[%emt 0:00:00]} Ba4 {[%emt 0:22:36]} 24. c6 {[%emt 0:00:00]} Rac8 {[%emt 0:15:30]} 25. Rb1 {[%emt 0:00:00]} a6 {[%emt 0:00:32]} 26. b6 {[%emt 0:00:00]} (26. c7 $18 Rxc7 27. b6 (27. bxa6 g6 $16)) 26... Bxc6 {[%emt 0:08:23]} 27. Bxa6 {[%emt 0:08:00]} Rb8 {[%emt 0:00:44]} 28. f3 {[%emt 0:00:00]} e5 {[%emt 0:01:42]} 29. Bd3 {[%emt 0:00:00]} Kf8 {[%emt 0:02:03]} 30. Rc2 {[%emt 0:00:00]} Bd5 {[%emt 0:01:23]} 31. a4 {[%emt 0:00:00]} Ra8 {[%emt 0:00:28]} 32. a5 {[%emt 0:00:00]} Rxa5 {[%emt 0:00:33]} 33. b7 {[%emt 0:00:00]} Bxb7 {[%emt 0:00:26]} 34. Rxb7 {[%emt 0:00:00]} Rda8 {[%emt 0:00:30]} 35. Rcc7 {[%emt 0:00:00]} Ra1+ {[%emt 0:00:11]} 36. Kf2 {[%emt 0:00:00]} R8a2+ {[%emt 0:00:51]} 37. Kg3 {[%emt 0:00:00]} Rg1 {[%emt 0:00:12]} 38. Rxf7+ {[%emt 0:00:00]} Kg8 {[%emt 0:00:21]} 39. Rxg7+ {[%emt 0:00:00]} Kh8 {[%emt 0:00:04]} 40. Rxh7+ {[%emt 0:00:00]} Kg8 {[%emt 0:00:03]} 41. Rb8# {[%emt 0:00:00]} 1-0